fUSD/lending_fUSD_20251029
["ID","MTS","AMOUNT","RATE_DAILY","PERIOD"]
[392650936,1761775832411,-9999.99,0.00014525,2]
[392650937,1761775832420,-150.99,0.00014525,2]
[392650938,1761775832429,-9999.99,0.00014525,2]
[392650939,1761775832438,-6025.21,0.00014525,2]
[392650940,1761775832448,-1659.03,0.00014525,2]
[392650941,1761775832457,-221.53471527,0.00014597,2]
[392650942,1761775832466,-602.24677946,0.00014597,2]
[392650943,1761775832475,-178.84412413,0.00014597,2]
[392650944,1761775832484,-245.80786747,0.00014597,2]
[392650945,1761775832493,-9999.99,0.00014598,2]
[392650946,1761775832503,-499.99,0.00014598,2]
[392650947,1761775832512,-1717.98,0.00014598,2]
[392650948,1761775832521,-627.69,0.00014598,2]
[392650949,1761775832530,-150.0,0.00014601,2]
[392650950,1761775832539,-892.67338722,0.00014627,2]
[392650951,1761775832549,-279.4134,0.00014656,2]
[392650952,1761775832558,-500.0,0.00014685,2]
[392650953,1761775832567,-150.0,0.00014738,2]
[392650954,1761775832576,-641.42,0.00014746,2]
[392650955,1761775832585,-151.0,0.00014746,2]
[392650956,1761775832595,-156.587,0.00014746,2]
[392650957,1761775832604,-721.12765535,0.00014746,2]
[392650958,1761775832614,-500.0,0.00014746,2]
[392650959,1761775832622,-162.380719,0.00014746,2]
[392650960,1761775832632,-500.0,0.00014746,2]
[392650961,1761775832641,-234.96332924,0.00014746,2]
[392650962,1761775832650,-500.0,0.00014746,2]
[392650963,1761775832660,-424.79433028,0.00014746,2]
[392650964,1761775832669,-500.0,0.00014746,2]
[392650965,1761775832678,-500.0,0.00014746,2]
[392650966,1761775832687,-500.0,0.00014746,2]
[392650967,1761775832696,-500.0,0.00014746,2]
[392650968,1761775832705,-500.0,0.00014746,2]
[392650969,1761775832715,-500.0,0.00014746,2]
[392650970,1761775832724,-200.0,0.00014746,2]
[392650971,1761775832733,-500.0,0.00014746,2]
[392650972,1761775832743,-500.0,0.00014746,2]
[392650973,1761775832752,-322.6107,0.00014746,2]
[392650974,1761775832761,-500.0,0.00014746,2]
[392650975,1761775832771,-500.0,0.00014746,2]
[392650976,1761775832781,-500.0,0.00014746,2]
[392650977,1761775832790,-500.0,0.00014746,2]
[392650978,1761775832800,-500.0,0.00014746,2]
[392650979,1761775832809,-500.0,0.00014746,2]
[392650980,1761775832820,-500.0,0.00014746,2]
[392650981,1761775832829,-500.0,0.00014746,2]
[392650982,1761775832838,-500.0,0.00014746,2]
[392650983,1761775832847,-500.0,0.00014746,2]
[392650984,1761775832856,-500.0,0.00014746,2]
[392650985,1761775832865,-500.0,0.00014746,2]
[392650986,1761775832878,-574.12855637,0.00014746,2]
[392650987,1761775832887,-200.0,0.00014746,2]
[392650988,1761775832897,-151.0,0.00014746,2]
[392650989,1761775832905,-151.0,0.00014746,2]
[392650990,1761775832915,-151.0,0.00014746,2]
[392650991,1761775832925,-151.0,0.00014746,2]
[392650992,1761775832934,-151.0,0.00014746,2]
[392650993,1761775832943,-151.0,0.00014746,2]
[392650994,1761775832955,-151.0,0.00014746,2]
[392650995,1761775832964,-200.0,0.00014746,2]
[392650996,1761775832974,-151.0,0.00014746,2]
[392650997,1761775832983,-151.0,0.00014746,2]
[392650998,1761775832993,-151.0,0.00014746,2]
[392650999,1761775833002,-230.77587372,0.00014746,2]
[392651000,1761775833011,-4833.2231521,0.00014754,2]
[392651001,1761775833021,-1589.16061522,0.00014756,2]
[392651002,1761775833031,-1589.16061517,0.00014772,2]
[392651003,1761775833040,-2500.0,0.00014788,2]
[392651004,1761775833049,-1589.16061517,0.00014788,2]
[392651005,1761775833059,-626.87260473,0.00014798,2]
[392651006,1761775833069,-685.7702,0.000148,2]
[392651007,1761775833079,-1000.0,0.000148,2]
[392651008,1761775833089,-1605.0,0.000148,2]
[392651009,1761775833098,-6530.02758218,0.000148,2]
[392651010,1761775833108,-1271.0,0.00014802,2]
[392651011,1761775833117,-819.0,0.00014802,2]
[392651012,1761775833128,-1589.16061517,0.00014804,2]
[392651013,1761775833138,-904.0,0.00014805,2]
[392651014,1761775833147,-6530.02758211,0.00014811,2]
[392651015,1761775833157,-1589.16061517,0.0001482,2]
[392651016,1761775833167,-500.0,0.00014822,2]
[392651017,1761775833177,-6530.02758211,0.00014822,2]
[392651018,1761775833187,-6530.02758211,0.00014833,2]
[392651019,1761775833196,-1589.16061517,0.00014836,2]
[392651020,1761775833205,-6628.0,0.00014838,2]
[392651021,1761775833215,-3492.0,0.00014838,2]
[392651022,1761775833224,-558.0,0.00014838,2]
[392651023,1761775833234,-150.0,0.00014844,2]
[392651024,1761775833243,-150.0,0.00014844,2]
[392651025,1761775833252,-150.0,0.00014844,2]
[392651026,1761775833262,-500.0,0.00014844,2]
[392651027,1761775833272,-150.0,0.00014844,2]
[392651028,1761775833285,-500.0,0.00014844,2]
[392651029,1761775833294,-6530.02758211,0.00014844,2]
[392651030,1761775833304,-460.79845,0.0001485,2]
[392651031,1761775833314,-1589.16061517,0.00014852,2]
[392651032,1761775833324,-6530.02758211,0.00014856,2]
[392651033,1761775833333,-217.44,0.00014856,2]
[392651034,1761775833344,-150.0,0.00014856,2]
[392651035,1761775833356,-204.74236721,0.00014856,2]
[392651036,1761775833365,-150.0,0.00014856,2]
[392651037,1761775833375,-150.0,0.00014856,2]
[392651038,1761775833384,-200.0,0.00014856,2]
[392651039,1761775833394,-500.0,0.00014856,2]
[392651040,1761775833404,-500.0,0.00014856,2]
[392651041,1761775833413,-150.0,0.00014856,2]
[392651042,1761775833423,-153.578,0.00014856,2]
[392651043,1761775833433,-606.0,0.00014856,2]
[392651044,1761775833443,-3418.0,0.00014856,2]
[392651045,1761775833453,-573.0,0.00014856,2]
[392651046,1761775833462,-820.0,0.00014856,2]
[392651047,1761775833471,-1314.0,0.00014856,2]
[392651048,1761775833480,-1594.0,0.00014856,2]
[392651049,1761775833488,-6530.02758211,0.00014867,2]
[392651050,1761775833498,-1589.16061517,0.00014868,2]
[392651051,1761775833507,-6530.02758211,0.00014878,2]
[392651052,1761775833516,-500.0,0.0001488,2]
[392651053,1761775833526,-200.0,0.0001488,2]
[392651054,1761775833535,-1589.16061517,0.00014884,2]
[392651055,1761775833546,-500.0,0.00014897,2]
[392651056,1761775833555,-500.0,0.00014897,2]
[392651057,1761775833565,-26914.87417422,0.00014898,2]
[392651058,1761775833631,-2205.88592063,0.00014898,2]
[392651059,1761775833643,-3121.77336805,0.00014898,2]
[392651060,1761775833655,-4046.57858114,0.00014898,2]
[392651061,1761775833666,-675.42364928,0.00014898,2]
[392651063,1761775837541,-259.56043698,0.00014805,2]
[392651064,1761775837551,-158.8857963,0.00014889,2]
[392651065,1761775837562,-2213.38731685,0.00014889,2]
[392651066,1761775837574,-4157.75446896,0.00014889,2]
[392651067,1761775837584,-957.84013821,0.00014898,2]
[392651068,1761775837596,-5464.7322754,0.00014898,2]
[392651069,1761775837608,-5470.72704555,0.00014898,2]
[392651070,1761775837619,-1411.8740031,0.00014898,2]
[392651071,1761775837631,-1328.8440078,0.00014898,2]
[392651072,1761775837841,-1596.38587071,0.00014898,2]
[392651126,1761775840036,-1.6e-07,0.00014805,2]
[392651127,1761775840206,-620.26000602,0.00013831,2]
[392651128,1761775840215,-499.99999984,0.00014805,2]
[392651129,1761775840225,-150.0,0.00014805,2]
[392651130,1761775840234,-86215.15826591,0.00014898,2]
[392651131,1761775840243,-500.0,0.00014899,2]
[392651132,1761775840252,-500.0,0.00014899,2]
[392651133,1761775840261,-626.87260473,0.000149,2]
[392651134,1761775840271,-40000.0,0.000149,2]
[392651135,1761775840280,-151.90088142,0.000149,2]
[392651136,1761775840290,-157.6692583,0.000149,2]
[392651137,1761775840299,-1589.16061517,0.000149,2]
[392651138,1761775840308,-806.52222412,0.000149,2]
[392651139,1761775840317,-6530.02758211,0.000149,2]
[392651140,1761775840326,-500.0,0.00014942,2]
[392651141,1761775840335,-150.0,0.00014942,2]
[392651142,1761775840344,-255.0,0.00014951,2]
[392651143,1761775840352,-151.0,0.00014972,2]
[392651144,1761775840362,-500.0,0.00014973,2]
[392651145,1761775840371,-500.0,0.00014973,2]
[392651146,1761775840380,-500.0,0.00014973,2]
[392651147,1761775840389,-500.0,0.00014973,2]
[392651148,1761775840398,-500.0,0.00014973,2]
[392651149,1761775840407,-500.0,0.00014973,2]
[392651150,1761775840416,-500.0,0.00014973,2]
[392651151,1761775840425,-151.0,0.00014976,2]
[392651152,1761775840434,-460.79846,0.0001498,2]
[392651153,1761775840443,-500.0,0.00014981,2]
[392651154,1761775840453,-150.0,0.00014981,2]
[392651155,1761775840462,-500.0,0.00014981,2]
[392651156,1761775840471,-151.0,0.00014981,2]
[392651157,1761775840480,-151.0,0.00014987,2]
[392651158,1761775840489,-500.0,0.00014998,2]
[392651159,1761775840498,-500.0,0.00014998,2]
[392651160,1761775840507,-103597.5833167,0.00014999,2]
[392651161,1761775840516,-4162.4630766,0.00014999,2]
[392651162,1761775840526,-500.0,0.00014999,2]
[392651163,1761775840535,-17036.9491479,0.00014999,2]
[392651164,1761775840543,-500.0,0.00014999,2]
[392651166,1761775840739,-620.4,0.00014999,2]
[392651167,1761775840753,-500.0,0.00014999,2]
[392651168,1761775840762,-500.0,0.00014999,2]
[392651169,1761775840772,-500.0,0.00014999,2]
[392651170,1761775840782,-500.0,0.00014999,2]
[392651171,1761775840791,-500.0,0.00014999,2]
[392651172,1761775840800,-500.0,0.00014999,2]
[392651173,1761775840810,-500.0,0.00014999,2]
[392651174,1761775840820,-205.89,0.00014999,2]
[392651175,1761775840831,-1854.0,0.00015,2]
[392651176,1761775840845,-1624611.160682,0.00015,2]
[392651177,1761775840856,-1241707.41033677,0.00015,2]
[392651186,1761775842691,-172.06550723,0.000141,2]
[392651187,1761775842701,-421.57274562,0.000141,2]
[392651188,1761775842710,-1328.35727226,0.00015,2]
[392651212,1761775846114,-706.82447489,0.0001473,2]
[392651223,1761775894473,150.0,0.00027397,120]
[392651224,1761775894664,150.0,0.00027534,120]
[392651225,1761775895504,201.90303175,0.00027671,120]
[392651231,1761775924633,-216.38452705,0.00013706,2]
[392651232,1761775926863,-205.01292417,0.00013706,2]
[392651236,1761775962461,1377.59,0.00031507,120]
[392651237,1761776001130,500.0,0.00025644,120]
[392651239,1761776418927,-78.60254878,0.00013706,2]
[392651240,1761776418960,-94.42004196,0.00013754,2]
[392651241,1761776599499,-332.23989269,0.00013685,2]
[392651242,1761776599524,-250.0,0.0001372,2]
[392651243,1761776599547,-59.92172789,0.00013754,2]
[392651244,1761776706245,150.0,0.00013488,2]
[392651245,1761776706345,150.0,0.00013488,2]
[392651246,1761776711092,150.0,0.00013488,2]
[392651247,1761776711206,150.0,0.00013488,2]
[392651248,1761776713554,150.0,0.00013488,2]
[392651249,1761776718044,202.84707978,0.00013488,2]
[392651250,1761776718117,150.0,0.00013488,2]
[392651251,1761776718214,150.0,0.00013488,2]
[392651252,1761776720668,151.3060737,0.00013488,2]
[392651253,1761776725876,150.0,0.00013488,2]
[392651254,1761776725979,150.0,0.00013488,2]
[392651255,1761776726101,150.0,0.00013488,2]
[392651256,1761776728519,150.0,0.00013488,2]
[392651258,1761776792222,7000.0,0.00013,2]
[392651259,1761776817092,6236.58322841,0.000162,5]
[392651267,1761776893526,9107.98399719,0.00031506,120]
[392651711,1761777032031,-157.85963175,0.00013851,2]
[392651712,1761777032041,-92.14036825,0.00013875,2]
[392651713,1761777032081,-907.85963175,0.00013875,2]
[392651714,1761777032091,-181.32,0.00013883,2]
[392651715,1761777032101,-387.28197684,0.00013935,2]
[392651716,1761777032110,-201.58,0.00013951,2]
[392651717,1761777032120,-380.72609441,0.00014,2]
[392651718,1761777032157,-112.39342377,0.00014,2]
[392651719,1761777032166,-165.73,0.00014035,2]
[392651720,1761777032177,-578.20924308,0.00014214,2]
[392651721,1761777032186,-387.28197684,0.00014368,2]
[392651722,1761777032197,-1200.0,0.00014598,2]
[392651723,1761777032207,-150.0,0.00014599,2]
[392651724,1761777032216,-1200.0,0.00014599,2]
[392651725,1761777032230,-300.0,0.00014599,2]
[392651726,1761777032240,-300.0,0.00014599,2]
[392651728,1761777032250,-9999.99,0.000146,2]
[392651730,1761777032261,-150.99,0.000146,2]
[392651732,1761777032270,-892.67338722,0.00014617,2]
[392651734,1761777032280,-277.35679052,0.00014701,2]
[392651736,1761777032290,-150.0,0.00014785,2]
[392651738,1761777032300,-500.0,0.00014786,2]
[392651740,1761777032309,-500.0,0.00014786,2]
[392651742,1761777032319,-298.45368961,0.00014786,2]
[392651744,1761777032329,-500.0,0.00014786,2]
[392651746,1761777032338,-500.0,0.00014786,2]
[392651748,1761777032347,-500.0,0.00014786,2]
[392651750,1761777032357,-500.0,0.00014786,2]
[392651752,1761777032366,-500.0,0.00014786,2]
[392651754,1761777032375,-500.0,0.00014786,2]
[392651756,1761777032384,-500.0,0.00014786,2]
[392651759,1761777032394,-500.0,0.00014786,2]
[392651761,1761777032403,-500.0,0.00014786,2]
[392651764,1761777032412,-500.0,0.00014786,2]
[392651766,1761777032421,-500.0,0.00014786,2]
[392651768,1761777032431,-500.0,0.00014786,2]
[392651770,1761777032440,-499.99999999,0.00014786,2]
[392651772,1761777032449,-200.0,0.00014787,2]
[392651774,1761777032459,-200.0,0.00014787,2]
[392651776,1761777032468,-500.0,0.00014787,2]
[392651778,1761777032478,-721.12765535,0.00014787,2]
[392651780,1761777032487,-500.0,0.00014787,2]
[392651782,1761777032496,-500.0,0.00014787,2]
[392651784,1761777032506,-500.0,0.00014787,2]
[392651786,1761777032516,-250.629319,0.00014787,2]
[392651788,1761777032526,-151.0,0.00014787,2]
[392651790,1761777032535,-151.0,0.00014787,2]
[392651792,1761777032544,-151.0,0.00014787,2]
[392651794,1761777032554,-151.0,0.00014787,2]
[392651796,1761777032563,-151.0,0.00014787,2]
[392651798,1761777032572,-151.0,0.00014787,2]
[392651800,1761777032582,-151.0,0.00014787,2]
[392651802,1761777032591,-500.0,0.00014787,2]
[392651804,1761777032600,-574.12855637,0.00014787,2]
[392651806,1761777032609,-200.0,0.00014787,2]
[392651808,1761777032618,-151.0,0.00014787,2]
[392651810,1761777032627,-500.0,0.00014787,2]
[392651812,1761777032636,-151.0,0.00014787,2]
[392651814,1761777032645,-500.0,0.00014787,2]
[392651816,1761777032654,-151.0,0.00014787,2]
[392651818,1761777032664,-500.0,0.00014787,2]
[392651820,1761777032673,-151.0,0.00014787,2]
[392651822,1761777032682,-500.0,0.00014787,2]
[392651825,1761777032691,-573.21060322,0.00014787,2]
[392651826,1761777032701,-322.6107,0.00014787,2]
[392651827,1761777032710,-530.09969562,0.00014789,2]
[392651844,1761777033110,-218.22030438,0.00014789,2]
[392651845,1761777033120,-608.15895828,0.00014795,2]
[392651846,1761777033129,-2306.65683491,0.00014798,2]
[392651847,1761777033226,-4754.8396003,0.00014798,2]
[392651848,1761777033237,-1063.79947188,0.00014798,2]
[392651849,1761777033248,-1517.56784776,0.00014798,2]
[392651850,1761777033259,-776.28283243,0.00014798,2]
[392651851,1761777033272,-555.66208952,0.00014798,2]
[392651852,1761777033308,-1824.0766232,0.00014798,2]
[392651853,1761777033317,-316.30616462,0.000148,2]
[392651857,1761777037774,-718.84524104,0.00014679,2]
[392651858,1761777037783,-221.53471527,0.00014792,2]
[392651859,1761777037792,-70.97581222,0.000148,2]
[392651860,1761777037801,-165.73,0.00014815,2]
[392651861,1761777037811,-200.0,0.0001488,2]
[392651862,1761777037819,-225.70325162,0.00014899,2]
[392651863,1761777037831,-166.4705241,0.00014899,2]
[392651864,1761777037842,-1000.0,0.000149,2]
[392651865,1761777037852,-2444.5411,0.000149,2]
[392651866,1761777037862,-162.20231634,0.000149,2]
[392651867,1761777037872,-228.26782728,0.000149,2]
[392651868,1761777037881,-6108.5161976,0.000149,2]
[392651869,1761777037893,-421.51138451,0.000149,2]
[392651870,1761777037902,-1312.0,0.00014956,2]
[392651871,1761777037912,-1592.0,0.00014956,2]
[392651872,1761777037922,-332.78708717,0.00014956,2]
[392651873,1761777037933,-484.21291283,0.00014956,2]
[392651874,1761777037942,-909.18560142,0.00014956,2]
[392651875,1761777037953,-253.28408403,0.00014956,2]
[392651876,1761777037969,-106.53031455,0.00014956,2]
[392651877,1761777037979,-540.97564219,0.00014956,2]
[392651878,1761777037991,-645.02435781,0.00014956,2]
[392651879,1761777038000,-3492.0,0.00014956,2]
[392651880,1761777038010,-6628.0,0.00014956,2]
[392651881,1761777038019,-820.0,0.00014956,2]
[392651882,1761777038029,-681.899,0.00014956,2]
[392651883,1761777038038,-500.0,0.00014973,2]
[392651884,1761777038048,-500.0,0.00014973,2]
[392651885,1761777038057,-500.0,0.00014973,2]
[392651886,1761777038066,-105.15058599,0.00014973,2]
[392651913,1761777038333,-394.84941401,0.00014973,2]
[392651915,1761777038343,-149.53229257,0.00014973,2]
[392651917,1761777038355,-350.46770743,0.00014973,2]
[392651919,1761777038364,-20.06229257,0.00014973,2]
[392651968,1761777040381,-479.93770743,0.00014973,2]
[392651969,1761777040390,-500.0,0.00014973,2]
[392651970,1761777040400,-500.0,0.00014973,2]
[392651971,1761777040409,-500.0,0.00014973,2]
[392651972,1761777040418,-500.0,0.00014973,2]
[392651973,1761777040427,-220.91,0.00014988,2]
[392651974,1761777040436,-500.0,0.00014997,2]
[392651975,1761777040445,-500.0,0.00014997,2]
[392651976,1761777040455,-295.10092194,0.00014997,2]
[392651977,1761777040464,-62860.879107,0.00014998,2]
[392651978,1761777040473,-103597.5833167,0.00014998,2]
[392651979,1761777040482,-1136.0078867,0.00014998,2]
[392651980,1761777040491,-155.0,0.00014999,2]
[392651981,1761777040500,-500.0,0.00014999,2]
[392651982,1761777040510,-500.0,0.00014999,2]
[392651983,1761777040519,-620.4,0.00014999,2]
[392651984,1761777040529,-500.0,0.00014999,2]
[392651985,1761777040538,-500.0,0.00014999,2]
[392651986,1761777040547,-3652.7724188,0.00014999,2]
[392651987,1761777040557,-500.0,0.00014999,2]
[392651988,1761777040566,-500.0,0.00014999,2]
[392651989,1761777040575,-500.0,0.00014999,2]
[392651990,1761777040584,-500.0,0.00014999,2]
[392651991,1761777040594,-500.0,0.00014999,2]
[392651992,1761777040603,-500.0,0.00014999,2]
[392651993,1761777040613,-205.89,0.00014999,2]
[392651994,1761777040622,-500.0,0.00014999,2]
[392651995,1761777040632,-1850.0,0.00015,2]
[392651996,1761777040641,-1027387.49826603,0.00015,2]
[392651997,1761777040650,-150.0,0.00015,2]
[392651998,1761777040659,-590.75491027,0.00015,2]
[392651999,1761777040668,-150.0,0.00015,2]
[392652000,1761777040678,-593.35255048,0.00015,2]
[392652001,1761777040687,-181328.24595856,0.00015,2]
[392652002,1761777040697,-1663003.47514191,0.00015,2]
[392652033,1761777045943,-806.52222412,0.000149,2]
[392652034,1761777045953,-573.0,0.00014956,2]
[392652035,1761777045963,-584.01092911,0.00015,2]
[392652036,1761777045975,-3164.16,0.00015,2]
[392652037,1761777045987,-3008.97756,0.00015,2]
[392652038,1761777045998,-39533.451785,0.00015,2]
[392652039,1761777046114,-1054406.36272565,0.00015,2]
[392652040,1761777046129,-256130.81182636,0.00015,2]
[392652061,1761777169385,63760.44475226,0.00015,7]
[392652062,1761777169412,205000.0,0.00015,7]
[392652063,1761777169438,75535.33060003,0.00015,7]
[392652064,1761777228109,365.0,0.000165,3]
[392652075,1761777400469,5008.57,0.00019,30]
[392652081,1761777481717,174.44,0.00011248,2]
[392652093,1761777555098,500.0,0.000165,3]
[392652094,1761777555440,500.0,0.000165,3]
[392652095,1761777555757,500.0,0.000165,3]
[392652096,1761777556083,500.0,0.000165,3]
[392652097,1761777556415,500.0,0.000165,3]
[392652098,1761777557330,500.0,0.000165,3]
[392652099,1761777557700,500.0,0.000165,3]
[392652100,1761777558125,576.70407909,0.000165,3]
[392652103,1761777604685,-166.66,0.00013699,2]
[392652104,1761777604709,-180.64996,0.00013744,2]
[392652105,1761777609242,-500.0,0.00013744,2]
[392652106,1761777634361,-195.0,0.00013675,2]
[392652107,1761777636823,-500.0,0.00013675,2]
[392652108,1761777639202,-170.00218383,0.00013675,2]
[392652109,1761777646089,150.0,0.00013742,120]
[392652110,1761777648944,-36.29432217,0.00013675,2]
[392652111,1761777648968,-117.66811732,0.00013742,2]
[392652113,1761777679616,-32.33188268,0.00013742,2]
[392652114,1761777679638,-195.0,0.00013743,2]
[392652115,1761777679660,-300.0,0.00013743,2]
[392652116,1761777679686,-22.92112244,0.00013744,2]
[392652117,1761777912311,150.0,0.00013488,2]
[392652118,1761777912405,150.0,0.00013488,2]
[392652119,1761777912507,150.0,0.00013488,2]
[392652120,1761777917261,150.0,0.00013488,2]
[392652121,1761777917306,150.0,0.00013488,2]
[392652122,1761777918081,-2.61891756,0.00013744,2]
[392652123,1761777918109,-300.0,0.00013765,2]
[392652124,1761777918132,-133.413454,0.00013765,2]
[392652125,1761777919748,150.0,0.00013488,2]
[392652126,1761777932995,150.0,0.00013488,2]
[392652127,1761777933088,150.0,0.00013488,2]
[392652128,1761777933153,150.0,0.00013488,2]
[392652130,1761777990776,677.94380236,0.000165,3]
[392652131,1761777996644,1707.1142701,0.00031506,120]
[392652138,1761778049926,152.35,6.842e-05,2]
[392652139,1761778050180,152.35,7.203e-05,2]
[392652140,1761778050393,152.35,7.563e-05,2]
[392652141,1761778050534,152.35,7.923e-05,2]
[392652142,1761778050742,152.35,8.283e-05,2]
[392652143,1761778051658,152.35,8.643e-05,2]
[392652144,1761778051718,152.35,9.003e-05,2]
[392652145,1761778051816,152.35,9.363e-05,2]
[392652146,1761778051899,152.35,9.724e-05,2]
[392652147,1761778052100,152.35,0.00010084,2]
[392652148,1761778052297,152.35,0.00010444,2]
[392652149,1761778052508,152.35,0.00010804,2]
[392652150,1761778052705,152.35,0.00011164,2]
[392652151,1761778052923,152.35,0.00011524,2]
[392652152,1761778053140,152.35,0.00011884,2]
[392652153,1761778053351,152.35,0.00012245,2]
[392652154,1761778053595,152.35,0.00012605,2]
[392652155,1761778053771,152.35,0.00012965,2]
[392652156,1761778054261,152.35,0.00013325,2]
[392652157,1761778188842,-264.46865671,0.00013585,2]
[392652158,1761778188865,-89.45333049,0.00013665,2]
[392652159,1761778190911,-86.0203711,0.00013665,2]
[392652160,1761778190936,-73.9796289,0.00013685,2]
[392652170,1761778219046,-298.4808664,0.00013616,2]
[392652171,1761778222043,-215.4411206,0.00013616,2]
[392652172,1761778222068,-78.3703711,0.00013685,2]
[392652173,1761778222090,-152.23413743,0.00013699,2]
[392652174,1761778223748,-252.65272235,0.00013699,2]
[392652184,1761778232059,-312.73314022,0.00013699,2]
[392652185,1761778232068,-550.66200491,0.00013734,2]
[392652187,1761778232333,-544.17799509,0.00013734,2]
[392652188,1761778232391,-61.586546,0.00013765,2]
[392652189,1761778232401,-445.65823015,0.00013886,2]
[392652190,1761778232411,-166.66,0.00013886,2]
[392652191,1761778232420,-200.0,0.00013939,2]
[392652192,1761778232429,-167.11321011,0.00013994,2]
[392652193,1761778232438,-166.66,0.00014074,2]
[392652194,1761778232447,-917.66401867,0.00014083,2]
[392652195,1761778232458,-422.14598133,0.00014083,2]
[392652197,1761778232468,-253.79,0.00014094,2]
[392652199,1761778232477,-74.06401867,0.00014099,2]
[392652203,1761778232508,-125.93598133,0.00014099,2]
[392652205,1761778232518,-201.84401857,0.00014099,2]
[392652210,1761778232552,-1.6321195,0.00014099,2]
[392652212,1761778232562,-500.0,0.00014099,2]
[392652214,1761778232570,-583.49543547,0.00014103,2]
[392652216,1761778232581,-616.50456453,0.00014103,2]
[392652218,1761778232591,-1200.0,0.00014104,2]
[392652220,1761778232600,-300.0,0.00014104,2]
[392652222,1761778232609,-16375.65,0.00014107,2]
[392652224,1761778232618,-150.0,0.00014248,2]
[392652226,1761778232627,-310.93929885,0.00014248,2]
[392652228,1761778232636,-322.6107,0.00014249,2]
[392652230,1761778232645,-250.0,0.00014249,2]
[392652232,1761778232654,-250.0,0.00014249,2]
[392652234,1761778232663,-250.0,0.00014249,2]
[392652236,1761778232673,-250.0,0.00014249,2]
[392652238,1761778232682,-250.0,0.00014249,2]
[392652240,1761778232691,-151.0,0.00014249,2]
[392652242,1761778232700,-250.0,0.00014249,2]
[392652244,1761778232709,-280.68909256,0.00014249,2]
[392652246,1761778232718,-250.0,0.00014249,2]
[392652248,1761778232727,-269.48639548,0.00014249,2]
[392652250,1761778232736,-460.337581,0.00014249,2]
[392652252,1761778232746,-718.48254152,0.00014249,2]
[392652254,1761778232755,-574.12855637,0.00014249,2]
[392652256,1761778232764,-250.0,0.00014249,2]
[392652258,1761778232773,-250.0,0.00014249,2]
[392652260,1761778232782,-250.0,0.00014249,2]
[392652262,1761778232793,-250.0,0.00014249,2]
[392652264,1761778232803,-250.0,0.00014249,2]
[392652266,1761778232813,-500.0,0.00014249,2]
[392652268,1761778232822,-622.73883005,0.00014249,2]
[392652270,1761778232832,-250.0,0.00014249,2]
[392652272,1761778232842,-250.0,0.00014249,2]
[392652274,1761778232851,-250.0,0.00014249,2]
[392652276,1761778232860,-250.0,0.00014249,2]
[392652278,1761778232869,-250.0,0.00014249,2]
[392652280,1761778232879,-250.0,0.00014249,2]
[392652282,1761778232888,-277.35679052,0.00014249,2]
[392652284,1761778232897,-500.0,0.00014249,2]
[392652286,1761778232907,-500.0,0.00014249,2]
[392652288,1761778232916,-500.0,0.00014249,2]
[392652290,1761778232926,-500.0,0.00014249,2]
[392652292,1761778232935,-166.66,0.00014261,2]
[392652294,1761778232944,-166.66,0.00014449,2]
[392652296,1761778232953,-718.84524105,0.00014549,2]